Cogmind - Beta 11.1 @@@ ROGUE MODE // 2022.06.06 @ 12:21:44 Player: ktur Result: Destroyed by as-13479 with Assembled Heavy Rifle Performance ------------- Evolutions (0) 0 Regions Visited (3) 600 Robots Destroyed (21) 105 Value Destroyed (590) 590 Prototype IDs (29) 580 Alien Tech Used (0) 0 Bonus (186) 186 TOTAL SCORE: 2061 Bonus ------- Aligned with FarCom 300 Friendly Fire -114 Cogmind --------- Core Integrity 0/250 Matter 197/300 Energy 18/100 System Corruption 1% Temperature Cool (17) Movement Core (400) Ox7 Location -10/Exiles Parts ------- > --- POWER (1) -------- (None) > --- PROPULSION (2) --- (None) > --- UTILITY (2) ------ Large Storage Unit > --- WEAPON (2) ------- Assault Rifle > --- INVENTORY (15) --- Light Nuclear Core Light Treads Light Treads Large Matter Pod (150) Targeting Computer Shield Generator Shield Generator Shield Generator Assault Rifle Datajack Hammer Peak State ------------ > --- POWER ------------ Ion Engine > --- PROPULSION ------- Light Treads Light Treads > --- UTILITY ---------- Small Storage Unit Shield Generator > --- WEAPON ----------- Improved Light Cannon Improved Light Cannon > --- INVENTORY -------- Light Ion Engine Compact Wheel Shield Generator Shield Generator Light Assault Rifle Light Assault Rifle Improved Light Cannon Improved Light Cannon [Rating: 11] Favorites ----------- Power Ion Engine Engine Ion Engine Propulsion Light Treads Treads Light Treads Utility Large Storage Unit Device Shield Generator Storage Large Storage Unit Processor Targeting Computer Weapon Improved Light Cannon Energy Gun Small Laser Ballistic Gun Light Assault Rifle Ballistic Cannon Improved Light Cannon Build | -11 -10 -10 -10 ------- Run | Scr Mat Min Exi Slots Evolved . | . . . . Power . | . . . . Propulsion . | . . . . Utility . | . . . . Weapon . | . . . . Parts Attached 21 | 6 9 . 6 Power 1 | 1 . . . Engine 1 | 1 . . . Core . | . . . . Reactor . | . . . . Propulsion 3 | 2 . . 1 Treads 3 | 2 . . 1 Leg . | . . . . Wheel . | . . . . Hover . | . . . . Flight . | . . . . Utility 6 | 1 4 . 1 Device 2 | . 1 . 1 Storage 2 | 1 1 . . Processor 2 | . 2 . . Hackware . | . . . . Protection . | . . . . Artifact . | . . . . Weapon 11 | 2 5 . 4 Energy Gun 1 | 1 . . . Energy Cannon . | . . . . Ballistic Gun 3 | 1 1 . 1 Ballistic Cannon 7 | . 4 . 3 Launcher . | . . . . Special Weapon . | . . . . Impact Weapon . | . . . . Slashing Weapon . | . . . . Piercing Weapon . | . . . . Special Melee Weapon . | . . . . Unidentified Prototypes . | . . . . Parts Lost 9 | . . . 9 Power 1 | . . . 1 Propulsion 3 | . . . 3 Utility 2 | . . . 2 Weapon 3 | . . . 3 Highest Loss Streak 9 | . . . 9 To Critical Strikes 4 | . . . 4 Average Slot Usage (%) 92 | . 98 100 74 Engine 13 | . 14 14 13 Treads 27 | . 28 28 27 Device 2 | . 3 . . Storage 14 | . 14 14 14 Processor 11 | . 9 14 13 Ballistic Gun 1 | . 2 . . Ballistic Cannon 19 | . 24 28 4 Naked Turns . | . . . . Heaviest Build 35 | 12 35 33 33 Greatest Support 40 | 40 40 40 40 Greatest Overweight (x) . | . . . . Average Overweight (x) . | . . . . Largest Inventory Capacity 15 | 8 15 15 15 Average Capacity 13 | 7 13 15 15 Most Carried 15 | 6 15 15 15 Average Carried 12 | 3 12 14 14 Final Capacity 15 | 8 15 15 15 Final Carried 15 | 6 15 15 11 Class Distribution -------------------- 100% | Mutant Dominant Class ---------------- Mutant | -10/Materials Mutant | -10/Mines Mutant | -10/Exiles Resources | -11 -10 -10 -10 ----------- Run | Scr Mat Min Exi Matter Collected 820 | 226 562 32 . Remotely . | . . . . Salvage Created 663 | . 586 59 18 Parts 34 | . 33 1 . Haulers Intercepted 2 | . 2 . . Recyclers Shooed . | . . . . Parts Field Recycled . | . . . . Retrieved Matter . | . . . . Parts Self-Destructed . | . . . . Prevented . | . . . . Kills | -11 -10 -10 -10 ------- Run | Scr Mat Min Exi Combat Hostiles Destroyed 17 | . 13 2 2 Cannons 17 | . 13 2 2 Classes Destroyed 6 | . 5 . 1 Worker 2 | . 2 . . Hauler 2 | . 2 . . Recycler 1 | . 1 . . Watcher 1 | . 1 . . Grunt 15 | . 13 2 . Assembled 2 | . . . 2 Best Kill Streak 6 | . 6 2 2 Combat Bots Only 6 | . 6 2 2 Max Kills in Single Turn 1 | . 1 1 1 Gunslinging . | . . . . Exploded . | . . . . Melee . | . . . . Uniques/NPCs Destroyed . | . . . . Combat | -11 -10 -10 -10 -------- Run | Scr Mat Min Exi Damage Taken 1445 | . 253 44 1148 Core 264 | . 30 30 204 Absorbed by Shields 103 | . 82 . 21 Regen/Repaired (Parts) 141 | . 141 . . Core Remaining (%) 100 | 100 . . . Volleys Fired 64 | . 49 4 11 Largest 2 | . 2 2 2 Hottest 78 | . 78 78 78 Shots Fired 105 | . 79 8 18 Gun 19 | . 19 . . Cannon 86 | . 60 8 18 Launcher . | . . . . Special . | . . . . Kinetic 103 | . 77 8 18 Thermal 2 | . 2 . . Explosive . | . . . . Electromagnetic . | . . . . Robot Hit Streak 9 | . 9 7 5 Robot Miss Streak 5 | . 3 1 5 Penetration Max . | . . . . Secondary Targets . | . . . . Shots Hit Robots 72 | . 57 6 9 Core Hits 34 | . 22 3 9 Critical Kills . | . . . . Critical Parts Destroyed . | . . . . Critical Strikes . | . . . . Melee Attacks . | . . . . Impact . | . . . . Slashing . | . . . . Piercing . | . . . . Sneak Attacks . | . . . . Combat Hostiles . | . . . . Follow-up Attacks . | . . . . Damage Inflicted 1541 | . 1095 130 316 Guns 178 | . 178 . . Cannons 1339 | . 893 130 316 Explosions . | . . . . Melee . | . . . . Ramming 24 | . 24 . . Kinetic 1496 | . 1050 130 316 Thermal 21 | . 21 . . Explosive . | . . . . Electromagnetic . | . . . . Impact . | . . . . Slashing . | . . . . Piercing . | . . . . Highest Corruption 1 | . 1 1 1 Average Corruption 1 | . 1 1 1 Corruption Purged . | . . . . Corruption Blocked . | . . . . Effects 13 | . 8 . 5 Message Errors 4 | . 3 . 1 Matter Fused 4 | . 1 . 3 Heat Flow Errors 4 | . 3 . 1 Data Loss (minor) 1 | . 1 . . Overload Shots . | . . . . Overflow Damage . | . . . . Projectiles . | . . . . Explosions . | . . . . Melee . | . . . . Knockbacks 22 | . 15 2 5 Impact 1 | . 1 . . Kinetic 16 | . 10 2 4 Secondary 5 | . 4 . 1 Self-Inflicted Damage . | . . . . Shots . | . . . . Rammed 3 | . 3 . . Targets Rammed 4 | . 4 . . Kicked . | . . . . Crushed 1 | . 1 . . Highest Temperature 266 | . 266 117 245 Average Temperature 85 | . 85 61 94 Received Heat Transfer 370 | . 151 45 174 Effects 1 | . 1 . . Interference 1 | . 1 . . Siege Activations . | . . . . Robots Corrupted . | . . . . Combat Hostiles . | . . . . Parts Fried . | . . . . Impact Corruptions . | . . . . Robots Melted . | . . . . Combat Hostiles . | . . . . Parts Melted . | . . . . Heat Transferred 50 | . 50 . . Parts Sabotaged . | . . . . Parts Stolen . | . . . . Parts Stripped . | . . . . Power Chain Reactions . | . . . . Missiles Intercepted . | . . . . Alert | -11 -10 -10 -10 ------- Run | Scr Mat Min Exi Peak Influence 283 | . 283 100 . Initial 44 | . . 44 . Average 130 | . 140 98 . Maximum Alert Level 1 | . 1 . . Low Security (%) 80 | 100 77 100 . Level 1 19 | . 22 . . Level 2 . | . . . . Level 3 . | . . . . Level 4 . | . . . . Level 5 . | . . . . High Security . | . . . . Max Security . | . . . . Squads Dispatched 3 | . 3 . . Investigation 3 | . 3 . . Extermination . | . . . . Reinforcement . | . . . . Assault . | . . . . Garrison . | . . . . Intercept . | . . . . Searches Triggered . | . . . . Construction Impeded . | . . . . Haulers Reinforced . | . . . . Active Scanning Responses . | . . . . Cargo Convoy Interrupts . | . . . . Stealth | -11 -10 -10 -10 --------- Run | Scr Mat Min Exi Distress Signals 1 | . 1 . . Communications Jammed . | . . . . Distress Signals . | . . . . Times Spotted 37 | . 28 1 8 Peak Tracking Total 9 | . 7 1 9 Tactical Retreats . | . . . . Traps | -11 -10 -10 -10 ------- Run | Scr Mat Min Exi Traps Triggered 2 | . 2 . . Indirectly . | . . . . Trap Hack Attempts . | . . . . Triggered . | . . . . Disarmed 4 | . 4 . . Reprogrammed . | . . . . Reused . | . . . . Traps Extracted . | . . . . Installed . | . . . . Triggered . | . . . . Machines | -11 -10 -10 -10 ---------- Run | Scr Mat Min Exi Machines Disabled 2 | . . . 2 Max in Single Turn 1 | . . . 1 Machines Sabotaged . | . . . . Garrisons Compromised . | . . . . Overloaded Fab Kills . | . . . . Hacking | -11 -10 -10 -10 --------- Run | Scr Mat Min Exi Machines Accessed 13 | . 11 . 2 Terminals 8 | . 8 . . Fabricators . | . . . . Repair Stations 1 | . 1 . . Recycling Units 2 | . 2 . . Scanalyzers . | . . . . Garrison Access . | . . . . Total Hacks 34 | . 32 . 2 Successful 20 | . 18 . 2 Failed 13 | . 13 . . Catastrophic 1 | . 1 . . Database Lockouts 1 | . 1 . . Manual 15 | . 14 . 1 Terminals 24 | . 24 . . Fabricators . | . . . . Repair Stations 4 | . 4 . . Recycling Units 4 | . 4 . . Scanalyzers . | . . . . Garrison Access . | . . . . Terminal Hacks 10 | . 8 . 2 Record 1 | . . . 1 Robot Analysis 1 | . 1 . . Prototype ID Bank 3 | . 3 . . Alert Level 1 | . 1 . . Locate Traps 1 | . 1 . . Disarm Traps 1 | . 1 . . Dispatch Records 1 | . 1 . . EX-Prototype ID Bank 1 | . . . 1 Fabricator Hacks . | . . . . Repair Station Hacks 4 | . 4 . . Scan Component 2 | . 2 . . Repair 2 | . 2 . . Recycling Unit Hacks . | . . . . Scanalyzer . | . . . . Garrison Access Hacks . | . . . . Unauthorized Hacks 6 | . 6 . . Terminals 4 | . 4 . . Botnet 3 | . 3 . . Operators 1 | . 1 . . Fabricators . | . . . . Repair Stations . | . . . . Recycling Units 2 | . 2 . . Tunnel 2 | . 2 . . Scanalyzers . | . . . . Garrison Access . | . . . . Data Cores Recovered . | . . . . Used . | . . . . Hacking Detections 9 | . 9 . . Full Trace Events . | . . . . Feedback Events . | . . . . Feedback Blocked . | . . . . Robot Schematics Acquired . | . . . . Robots Built . | . . . . Authchips . | . . . . Time . | . . . . Total Robot Build Rating . | . . . . Part Schematics Acquired . | . . . . Parts Built . | . . . . Authchips . | . . . . Time . | . . . . Total Part Build Rating . | . . . . Parts Repaired 2 | . 2 . . Time 58 | . 58 . . Parts Recycled . | . . . . Recycled Matter . | . . . . Retrieved Matter . | . . . . Retrieved Components . | . . . . Parts Scanalyzed . | . . . . Part Schematics Acquired . | . . . . Parts Damaged . | . . . . Bothacking | -11 -10 -10 -10 ------------ Run | Scr Mat Min Exi Used RIF Installer . | . . . . Robots Hacked . | . . . . Non-combat . | . . . . Combat . | . . . . Robot Hacks Applied . | . . . . Relay Couplers Released . | . . . . Fabnet Peak Effective % . | . . . . Robots Rewired . | . . . . Allies Hacked . | . . . . Hacks Repelled . | . . . . Allies | -11 -10 -10 -10 -------- Run | Scr Mat Min Exi Total Allies . | . . . . Largest Group . | . . . . Highest-Rated Group . | . . . . Highest-Rated Ally . | . . . . Total Orders . | . . . . Ally Attacks . | . . . . Total Damage . | . . . . Kills . | . . . . Allies Corrupted . | . . . . Allies Melted . | . . . . Intel | -11 -10 -10 -10 ------- Run | Scr Mat Min Exi Robot Analysis Total 1 | . 1 . . Derelict Logs Recovered . | . . . . Drone Launches . | . . . . Drone Recoveries . | . . . . Exploration | -11 -10 -10 -10 ------------- Run | Scr Mat Min Exi Turns Passed 2427 | 83 1555 158 631 Spaces Moved 1281 | 48 809 64 360 Core 7 | 7 . . . Treads 1274 | 41 809 64 360 Legs . | . . . . Wheels . | . . . . Hover . | . . . . Flight . | . . . . Fastest Speed 50 | 50 160 160 160 Average Speed 159 | 143 160 160 160 Slowest Speed 160 | 160 160 160 160 Overloaded Moves . | . . . . Propulsion Burnouts . | . . . . Robots Hopped . | . . . . Cave-ins Triggered . | . . . . Exploration Rate (%) 39 | 4 99 5 51 Regions Visited 3 Branch Regions 2 Pre-discovered Areas 3 | . 2 . 1 Known Exits Taken . | . . . . Unknown Exits Taken 3 | 1 1 1 . Scrap Searched . | . . . . Spaces Dug . | . . . . Terrain Destroyed 4 | . 2 2 . Melee . | . . . . Projectile 4 | . 2 2 . AOE . | . . . . Terrain Rammed . | . . . . Walls Destroyed . | . . . . Machines Disabled . | . . . . Actions | -11 -10 -10 -10 --------- Run | Scr Mat Min Exi Total 1565 | 59 992 112 402 Wait 139 | . 89 43 7 Move 1278 | 47 808 63 360 Hop . | . . . . Pick Up 33 | 6 18 1 8 Fast Attach 11 | 6 5 . . Attach 6 | . . . 6 Detach 5 | . 3 . 2 Swap 4 | . 4 . . Drop 21 | . 12 1 8 Fire 64 | . 49 4 11 Melee . | . . . . Ram . | . . . . Kick . | . . . . Crush 4 | . 4 . . Escape Stasis . | . . . . Rewire . | . . . . Trap . | . . . . Miscellaneous . | . . . . Route ------- -11/Scrapyard -10/Materials (discovered 5 exits: [*Mat x3] / [*Min x2]) -10/Mines -10/Exiles History --------- Turn | Location | Event 35 | -11/Scrapyard | Discovered new exit (range 16) 84 | -11/Scrapyard | Entered Materials 276 | -10/Materials | Discovered new exit (range 10) 324 | -10/Materials | Build established: Mutant 465 | -10/Materials | Discovered new exit (range 11) 744 | -10/Materials | Discovered new exit (range 16) 1074 | -10/Materials | Discovered new exit (range 8) 1167 | -10/Materials | Central database locked down 1372 | -10/Materials | Repaired Imp. Light Cannon 1399 | -10/Materials | Repaired Lgt. Treads 1512 | -10/Materials | Discovered new exit (range 16) 1639 | -10/Materials | Entered Mines 1690 | -10/Mines | Deemed a non-threat by the Exiles lab entrance 1691 | -10/Mines | Discovered new exit (range 5) 1715 | -10/Mines | Assembled infested the area 1794 | -10/Mines | Met 8R-AWN 1797 | -10/Mines | Entered Exiles 1839 | -10/Exiles | Welcomed by 8R-AWN 1867 | -10/Exiles | Met EX-HEX 1931 | -10/Exiles | Met EX-DEC 1937 | -10/Exiles | Learned location of Zion (-6) 1964 | -10/Exiles | Met EX-BIN 1987 | -10/Exiles | Aligned with FarCom system 1988 | -10/Exiles | Given EX-Vault access code 2027 | -10/Exiles | Opened EX-Vault 2067 | -10/Exiles | Warned to stay clear of 0b10 Research branches 2139 | -10/Exiles | Learned about 8R-AWN's background 2392 | -10/Exiles | Attacked by the Exiles 2417 | -10/Exiles | Core integrity fell below 50% 2421 | -10/Exiles | Core integrity fell below 20% 2428 | -10/Exiles | Destroyed by as-13479 with Assembled Heavy Rifle Last Messages --------------- 02414_ Critical hit (Destroy). 02414_ Lgt. Treads destroyed. 02414_ HV Slug penetrates Earth. 02416_ Penetrated by HV Slug. 02416_ Critical hit (Destroy). 02416_ Imp. Light Cannon destroyed. 02416_ HV Slug penetrates Earth. 02416_ Penetrated by HV Slug. 02416_ HV Slug penetrates Earth. 02418_ HV Slug penetrates Wall. 02418_ Penetrated by HV Slug. 02418_ HV Slug penetrates Earth. 02419_ Lgt. Treads destroyed. 02420_ Penetrated by HV Slug. 02423_ HV Slug penetrates Earth. 02425_ Penetrated by HV Slug. 02426_ Shield Generator destroyed. 02427_ Penetrated by HV Slug. 02427_ Imp. Light Cannon destroyed. 02427_ Penetrated by HV Slug. Map ----- +----------------------------------------------------+ | """#?????????????????????????????????????????????? | | """#?????????????????????????????????????????????? | | """#?????????????????????????????????????????????? | | """#?????????????????????????????????????????????? | | """#?????????????????????????????????????????????? | | """#?????????????????????????????????????????????? | | """#?????????????????????????????????????????????? | | """#?????????????????????????????????????????????? | | """#?????????????????????????????????????????????? | | """#?????????????????????????????????????????????? | | """"?????????????????????????????????????????????? | | """#?????????????????????????????????????????????? | | """"?????????????????????????????????????????????? | | #?????????????????????????????????????????????? | | """#?????????? ??????????????????????????????????? | | ####??????????? ?????????????????????????????????? | | ???????????????? #???????????????????????????????? | | ????????????????# #??????????????????????????????? | | ?????????????????# #?????????????????????????? ??? | | ##########????????# #????????????????????????? ? | | """""""""##????????# #??###??????????????????? | | " """ """"##????????# #?# #??????????????????# # | | "" " #?????????# # #????????????????## # | | " """#??????????# # #????????????????# | | " "#??????????##;;##???????????????# | | " "##?????????#; @ #??????????????## | | ""###???????#"aag#?????????????## #? | | """#??????## %%%##????????????# #? | | "#????###%aa %%###????????### #?? | | ##???# a ########## #?? | | ##?## % #""""## #??? | | ### % ##?? | | ## #?? | | * #### ##? | | " #?#"""""#### ## | | #"""##?#######??#### | | ######??????????????##### | | ##???????????????????????### | | " ##??????????????????????????### | | """ * * ""#?????????????????????????????### | | ""#" "##??????????????????????????????#" | | """##"""""""##???????????????????????????????#### | | """#?#########???????????????????????????????????# | | ##???????????????????????????????????????????????# | | ?????????????????????????????????????????????????? | | ?????????????????????????????????????????????????? | | ?????????????????????????????????????????????????? | | ?????????????????????????????????????????????????? | | ?????????????????????????????????????????????????? | | ?????????????????????????????????????????????????? | +----------------------------------------------------+ Best States ------------- Heat Dissipation 25 Energy Generation 10 Energy Capacity 250 Matter Stores 300 Matter Capacity 300 Sight Range 16 Terrain Scan Density 10 Evasion (%) 40 Targeting Accuracy 5 Recoil Reduction 2 Item Schematics ----------------- None Robot Schematics ------------------ None Fabricated ------------ Nothing Alien Tech Used ----------------- None Achievements -------------- None Challenges ------------ None Game ------ Seed MiningImprinterWeb Manual? 0 Play Time 00:13:59 Cumulative 468.2 hours Start 2022.06.06 @ 12:10:21 End 2022.06.06 @ 12:21:44 Sessions 1 Manual Loads 0 Difficulty Rogue Special Mode None Game No. 442 Rogue 442 Adventurer 0 Explorer 0 Win Type - Total 22 Types 13/2/4/2/0/0/0/1/0 Lore% 94 Gallery% 93 Achievement% 78 Wizard Run 0 Options --------- ASCII 0 Keyboard 0 Movement Arrows Keybinds 0 Fullscreen 1 Font 18/Smallcaps Map View 76x50 Tactical HUD 1 Map Filters NONE Filters NONE Steam 1 RUN: 0ad0fe3b-3f07-45ea-8cc6-62ca4e62128e